Workbook

Sheet каблуч
B3: д/с Шатлык
B5: Кружок "Разноцветные ладошки"
B6: Сиразева Г.А
B7: S- кв.м. | D7: 37.8
B8: Кол-во занятий в нед. - 1(4) | D8: 4
B9: Кол-во детей - | D9: 10
B10: Ст-ть использ-го оборудования - руб. | D10: 18475
B12: 1. ОТ на 1 обучающего - руб.: | D12: =D13+D15 -> 32.68
B13: Окл.-14232, 1 кат - 3842,64 руб. | D13: =18074.64/18/4/D9 -> 25.10
B15: Начисление на ОТ - | D15: =D13*30.2% -> 7.58
B18: 2. Затраты на мат.запасы на 1 реб. -руб.
B19: ст обор/36мес.=руб. | D19: =D10/36 -> 513.19
B20: Затраты на 1 занятие- ст обор в мес/кол-во часов в мес/кол-во детей - руб. | D20: =D19/D8/D9 -> 12.83
B22: 3. Объем накладных затрат 1 ребенка - руб. | D22: =D30 -> 13.95
B23: Расчет накладных затрат
B24: 1 | C24: прогноз затрат на АУП | D24: -
B25: 2 | C25: Прогноз затрат общехозяйственного назнач. | D25: =D34+D35+2.3 -> 13.95
B26: 3 | C26: Прогноз суммы начисленной амортизации имущ-ва общехоз-го назнач. | D26: -
B27: 4 | C27: Прогноз ФОТ основного персонала | D27: =D12 -> 32.68
B28: 5 | C28: Коэффициент накладных затрат 5=(1+2+3)/4 | D28: =D25/D27 -> 0.43
B29: 6 | C29: Затраты на основн персонал, | D29: =D12 -> 32.68
B30: 7 | C30: Итого накладные затраты (в час на 1 реб) | D30: =D25 -> 13.95
B33: 1. | C33: ОТ уборщика: руб.
C34: 12130 руб./40 час/4 нед*1 час=75,82/кол-во дет, руб. | D34: =75.82*1.302/D9 -> 9.87
B35: 2. | C35: Затраты на ком. Услуги: коммун/кол-во дет, руб. | D35: =(B36+B40+B45)/D9 -> 1.78
A36: Э/Э - | B36: =0.03*D7*7 -> 7.94 | C36: руб.
A37: Годов. Потребл - 49190 квт/ч (факт 2019 г)
A38: 49190 квт/ч/244 раб.дн.в году=201,6 квт/ч в день/12 час.=16,8 квт/ч (затраты в час работы на все здание)
A39: 16,8 квт/ч /557,9 кв.м*12,9 кв.м.=1,56 квт/ч*5,69 руб.=
A40: Вода- | B40: =F41+F42+F43+F44 -> 8.9 | C40: руб.
A41: 1 реб*75 л(в день норма)/12 часов/1000=0,00625 куб.м*61,85 руб.=0,39 руб.*кол-во дет= руб. | F41: =0.39*D9 -> 3.9
A42: 2 работника (воспит, уборщ)*20 л/12 час/1000=0,003 куб.м.*34,5 руб.= руб. | F42: 0.1
A43: На мытье полов 75 л/1000=0,075 куб.м.*34,5руб.= руб. | F43: 2.59
A44: Водоотвед. 0,00625 куб.м.+0,003 куб.м.+0,075 куб.м.=0,08425 куб.м.*27,36 руб= руб. | F44: 2.31
A45: Отопление - | B45: =0.00266*D7/30/24*6809.35 -> 0.95 | C45: руб.
A46: 17,995 Гкал(по факту 2019 г)/8 мес(период отопления)= 2,249 Гкал в мес.
A47: 2,249 Гкал/847,2*12,9 кв.м=1,270Гкал/30 дн/24 ч*1 ч=0,0018 Гкал в час*1990 руб.= руб.
B49: 3. | C49: Материальные затраты - 2,3 руб.
A50: - Канцелярские товары (для ведения документации) – 1,3 руб. на одного ребенка
A51: Стоимость – 6144 руб.
A52: Срок полезного использования – 8 мес.
A53: Расходы в месяц – 768/8=96
A54: Затраты на одного ребенка за одно занятие – 96/4(часов в месяц)=24/10(кол-во детей)=1,2
A55: - Моющие средства для уборки помещения – 1,1 руб. на одного ребенка
A56: Стоимость – 5632
A57: Срок полезного использования – 8 мес.
A58: Расходы в месяц –704/8=88
A59: Затраты на одного ребенка за одно занятие – 88/4(часов в месяц)=22/10(кол-во детей)=1,1
C61: Расчет стоимости одного занятия на 1 человека:
C62: Расчет цены на оказание платной услуги
C64: Наименование статей затрат | D64: Сумма (руб.)
B65: 1 | C65: Затраты на оплату труда основного персонала | D65: =D12*D9 -> 326.85
B66: 2 | C66: Затраты материальных запасов | D66: =D20*D9 -> 128.30
B67: 3 | C67: Сумма начисленной амортизации оборудования, используемого при оказании платной услуги | D67: -
B68: 4 | C68: Накладные затраты, относимые на платную услугу | D68: =D25*D9 -> 139.51
B69: 5 | C69: Итого затрат | D69: =SUM(D65:D68) -> 594.65
B70: 6 | C70: Цена на 1 платную услугу | D70: =D69/D9 -> 59.47
B71: 7 | C71: Цена в месяц на 1 ребенка | D71: 237.88

Sheet 3
B3: д/с Шатлык
B5: Кружок "Занимательная математика"
B6: Хисматуллина Г.Р.
B7: S- кв.м. | D7: 37.8
B8: Кол-во занятий в нед. - 1(4) | D8: 4
B9: Кол-во детей - | D9: 5
B10: Ст-ть использ-го оборудования - руб. | D10: 18665
B12: 1. ОТ на 1 обучающего - руб.: | D12: =D13+D15 -> 65.37
B13: Окл.-14232, 1 кат - 3842,64 руб. | D13: =18074.64/18/4/D9 -> 50.21
B15: Начисление на ОТ - | D15: =D13*30.2% -> 15.16
B18: 2. Затраты на мат.запасы на 1 реб. -руб.
B19: ст обор/36мес.=руб. | D19: =D10/36 -> 518.47
B20: Затраты на 1 занятие- ст обор в мес/кол-во часов в мес/кол-во детей - руб. | D20: =D19/D8/D9 -> 25.92
B22: 3. Объем накладных затрат 1 ребенка - руб. | D22: =D30 -> 25.21
B23: Расчет накладных затрат
B24: 1 | C24: прогноз затрат на АУП | D24: -
B25: 2 | C25: Прогноз затрат общехозяйственного назнач. | D25: =D34+D35+2.3 -> 25.21
B26: 3 | C26: Прогноз суммы начисленной амортизации имущ-ва общехоз-го назнач. | D26: -
B27: 4 | C27: Прогноз ФОТ основного персонала | D27: =D12 -> 65.37
B28: 5 | C28: Коэффициент накладных затрат 5=(1+2+3)/4 | D28: =D25/D27 -> 0.39
B29: 6 | C29: Затраты на основн персонал, | D29: =D12 -> 65.37
B30: 7 | C30: Итого накладные затраты (в час на 1 реб) | D30: =D25 -> 25.21
B33: 1. | C33: ОТ уборщика: руб.
C34: 12130 руб./40 час/4 нед*1 час=75,82/кол-во дет, руб. | D34: =75.82*1.302/D9 -> 19.74
B35: 2. | C35: Затраты на ком. Услуги: коммун/кол-во дет, руб. | D35: =(B36+B40+B45)/D9 -> 3.17
A36: Э/Э - | B36: =0.03*D7*7 -> 7.94 | C36: руб.
A37: Годов. Потребл - 49190 квт/ч (факт 2019 г)
A38: 49190 квт/ч/244 раб.дн.в году=201,6 квт/ч в день/12 час.=16,8 квт/ч (затраты в час работы на все здание)
A39: 16,8 квт/ч /557,9 кв.м*12,9 кв.м.=1,56 квт/ч*5,69 руб.=
A40: Вода- | B40: =F41+F42+F43+F44 -> 6.95 | C40: руб.
A41: 1 реб*75 л(в день норма)/12 часов/1000=0,00625 куб.м*61,85 руб.=0,39 руб.*кол-во дет= руб. | F41: =0.39*D9 -> 1.95
A42: 2 работника (воспит, уборщ)*20 л/12 час/1000=0,003 куб.м.*34,5 руб.= руб. | F42: 0.1
A43: На мытье полов 75 л/1000=0,075 куб.м.*34,5руб.= руб. | F43: 2.59
A44: Водоотвед. 0,00625 куб.м.+0,003 куб.м.+0,075 куб.м.=0,08425 куб.м.*27,36 руб= руб. | F44: 2.31
A45: Отопление - | B45: =0.00266*D7/30/24*6809.35 -> 0.95 | C45: руб.
A46: 17,995 Гкал(по факту 2019 г)/8 мес(период отопления)= 2,249 Гкал в мес.
A47: 2,249 Гкал/847,2*12,9 кв.м=1,270Гкал/30 дн/24 ч*1 ч=0,0018 Гкал в час*1990 руб.= руб.
B49: 3. | C49: Материальные затраты - 2,3 руб.
A50: - Канцелярские товары (для ведения документации) – 1,3 руб. на одного ребенка
A51: Стоимость – 6144 руб.
A52: Срок полезного использования – 8 мес.
A53: Расходы в месяц – 768/8=96
A54: Затраты на одного ребенка за одно занятие – 96/4(часов в месяц)=24/10(кол-во детей)=1,2
A55: - Моющие средства для уборки помещения – 1,1 руб. на одного ребенка
A56: Стоимость – 5632
A57: Срок полезного использования – 8 мес.
A58: Расходы в месяц –704/8=88
A59: Затраты на одного ребенка за одно занятие – 88/4(часов в месяц)=22/10(кол-во детей)=1,1
C61: Расчет стоимости одного занятия на 1 человека:
C62: Расчет цены на оказание платной услуги
C64: Наименование статей затрат | D64: Сумма (руб.)
B65: 1 | C65: Затраты на оплату труда основного персонала | D65: =D12*D9 -> 326.85
B66: 2 | C66: Затраты материальных запасов | D66: =D20*D9 -> 129.62
B67: 3 | C67: Сумма начисленной амортизации оборудования, используемого при оказании платной услуги | D67: -
B68: 4 | C68: Накладные затраты, относимые на платную услугу | D68: =D25*D9 -> 126.06
B69: 5 | C69: Итого затрат | D69: =SUM(D65:D68) -> 582.52
B70: 6 | C70: Цена на 1 платную услугу | D70: =D69/D9 -> 116.50
B71: 7 | C71: Цена в месяц на 1 ребенка | D71: 466.00

Sheet знайка
B3: д/с Шатлык
B5: Кружок "Веселый язычок"
B6: Хабибуллина Л.Ш
B7: S- кв.м. | D7: 6.3
B8: Кол-во занятий в нед. - 1(4) | D8: 4
B9: Кол-во детей - | D9: 10
B10: Ст-ть использ-го оборудования - руб. | D10: 18870
B12: 1. ОТ на 1 обучающего - руб.: | D12: =D13+D15 -> 25.74
B13: Окл.-14236 | D13: =14236/18/4/D9 -> 19.77
B15: Начисление на ОТ - | D15: =D13*30.2% -> 5.97
B18: 2. Затраты на мат.запасы на 1 реб. -руб.
B19: ст обор/36мес.=руб. | D19: =D10/36 -> 524.17
B20: Затраты на 1 занятие- ст обор в мес/кол-во часов в мес/кол-во детей - руб. | D20: =D19/D8/D9 -> 13.10
B22: 3. Объем накладных затрат 1 ребенка - руб. | D22: =D30 -> 13.21
B23: Расчет накладных затрат
B24: 1 | C24: прогноз затрат на АУП | D24: -
B25: 2 | C25: Прогноз затрат общехозяйственного назнач. | D25: =D34+D35+2.3 -> 13.21
B26: 3 | C26: Прогноз суммы начисленной амортизации имущ-ва общехоз-го назнач. | D26: -
B27: 4 | C27: Прогноз ФОТ основного персонала | D27: =D12 -> 25.74
B28: 5 | C28: Коэффициент накладных затрат 5=(1+2+3)/4 | D28: =D25/D27 -> 0.51
B29: 6 | C29: Затраты на основн персонал, | D29: =D12 -> 25.74
B30: 7 | C30: Итого накладные затраты (в час на 1 реб) | D30: =D25 -> 13.21
B33: 1. | C33: ОТ уборщика: руб.
C34: 12130 руб./40 час/4 нед*1 час=75,82/кол-во дет, руб. | D34: =75.82*1.302/D9 -> 9.87
B35: 2. | C35: Затраты на ком. Услуги: коммун/кол-во дет, руб. | D35: =(B36+B40+B45)/D9 -> 1.04
A36: Э/Э - | B36: =0.03*D7*7 -> 1.32 | C36: руб.
A37: Годов. Потребл - 49190 квт/ч (факт 2019 г)
A38: 49190 квт/ч/244 раб.дн.в году=201,6 квт/ч в день/12 час.=16,8 квт/ч (затраты в час работы на все здание)
A39: 16,8 квт/ч /557,9 кв.м*12,9 кв.м.=1,56 квт/ч*5,69 руб.=
A40: Вода- | B40: =F41+F42+F43+F44 -> 8.9 | C40: руб.
A41: 1 реб*75 л(в день норма)/12 часов/1000=0,00625 куб.м*61,85 руб.=0,39 руб.*кол-во дет= руб. | F41: =0.39*D9 -> 3.9
A42: 2 работника (воспит, уборщ)*20 л/12 час/1000=0,003 куб.м.*34,5 руб.= руб. | F42: 0.1
A43: На мытье полов 75 л/1000=0,075 куб.м.*34,5руб.= руб. | F43: 2.59
A44: Водоотвед. 0,00625 куб.м.+0,003 куб.м.+0,075 куб.м.=0,08425 куб.м.*27,36 руб= руб. | F44: 2.31
A45: Отопление - | B45: =0.00266*D7/30/24*6809.35 -> 0.16 | C45: руб.
A46: 17,995 Гкал(по факту 2019 г)/8 мес(период отопления)= 2,249 Гкал в мес.
A47: 2,249 Гкал/847,2*12,9 кв.м=1,270Гкал/30 дн/24 ч*1 ч=0,0018 Гкал в час*1990 руб.= руб.
B49: 3. | C49: Материальные затраты - 2,3 руб.
A50: - Канцелярские товары (для ведения документации) – 1,3 руб. на одного ребенка
A51: Стоимость – 6144 руб.
A52: Срок полезного использования – 8 мес.
A53: Расходы в месяц – 768/8=96
A54: Затраты на одного ребенка за одно занятие – 96/4(часов в месяц)=24/10(кол-во детей)=1,2
A55: - Моющие средства для уборки помещения – 1,1 руб. на одного ребенка
A56: Стоимость – 5632
A57: Срок полезного использования – 8 мес.
A58: Расходы в месяц –704/8=88
A59: Затраты на одного ребенка за одно занятие – 88/4(часов в месяц)=22/10(кол-во детей)=1,1
C61: Расчет стоимости одного занятия на 1 человека:
C62: Расчет цены на оказание платной услуги
C64: Наименование статей затрат | D64: Сумма (руб.)
B65: 1 | C65: Затраты на оплату труда основного персонала | D65: =D12*D9 -> 257.43
B66: 2 | C66: Затраты материальных запасов | D66: =D20*D9 -> 131.04
B67: 3 | C67: Сумма начисленной амортизации оборудования, используемого при оказании платной услуги | D67: -
B68: 4 | C68: Накладные затраты, относимые на платную услугу | D68: =D25*D9 -> 132.10
B69: 5 | C69: Итого затрат | D69: =SUM(D65:D68) -> 520.58
B70: 6 | C70: Цена на 1 платную услугу | D70: =D69/D9 -> 52.06
B71: 7 | C71: Цена в месяц на 1 ребенка | D71: 208.24

Sheet 4
B3: д/с Шатлык
B5: Кружок "Готовим руку к письму"
B6: Якупова З.Н
B7: S- кв.м. | D7: 43.7
B8: Кол-во занятий в нед. - 1(4) | D8: 4
B9: Кол-во детей - | D9: 9
B10: Ст-ть использ-го оборудования - руб. | D10: 18765
B12: 1. ОТ на 1 обучающего - руб.: | D12: =D13+D15 -> 36.32
B13: Окл.-14232, 1 кат - 3842,64 руб. | D13: =18074.64/18/4/D9 -> 27.89
B15: Начисление на ОТ - | D15: =D13*30.2% -> 8.42
B18: 2. Затраты на мат.запасы на 1 реб. -руб.
B19: ст обор/36мес.=руб. | D19: =D10/36 -> 521.25
B20: Затраты на 1 занятие- ст обор в мес/кол-во часов в мес/кол-во детей - руб. | D20: =D19/D8/D9 -> 14.48
B22: 3. Объем накладных затрат 1 ребенка - руб. | D22: =D30 -> 15.36
B23: Расчет накладных затрат
B24: 1 | C24: прогноз затрат на АУП | D24: -
B25: 2 | C25: Прогноз затрат общехозяйственного назнач. | D25: =D34+D35+2.3 -> 15.36
B26: 3 | C26: Прогноз суммы начисленной амортизации имущ-ва общехоз-го назнач. | D26: -
B27: 4 | C27: Прогноз ФОТ основного персонала | D27: =D12 -> 36.32
B28: 5 | C28: Коэффициент накладных затрат 5=(1+2+3)/4 | D28: =D25/D27 -> 0.42
B29: 6 | C29: Затраты на основн персонал, | D29: =D12 -> 36.32
B30: 7 | C30: Итого накладные затраты (в час на 1 реб) | D30: =D25 -> 15.36
B33: 1. | C33: ОТ уборщика: руб.
C34: 12130 руб./40 час/4 нед*1 час=75,82/кол-во дет, руб. | D34: =75.82*1.302/D9 -> 10.97
B35: 2. | C35: Затраты на ком. Услуги: коммун/кол-во дет, руб. | D35: =(B36+B40+B45)/D9 -> 2.09
A36: Э/Э - | B36: =0.03*D7*7 -> 9.18 | C36: руб.
A37: Годов. Потребл - 49190 квт/ч (факт 2019 г)
A38: 49190 квт/ч/244 раб.дн.в году=201,6 квт/ч в день/12 час.=16,8 квт/ч (затраты в час работы на все здание)
A39: 16,8 квт/ч /557,9 кв.м*12,9 кв.м.=1,56 квт/ч*5,69 руб.=
A40: Вода- | B40: =F41+F42+F43+F44 -> 8.51 | C40: руб.
A41: 1 реб*75 л(в день норма)/12 часов/1000=0,00625 куб.м*61,85 руб.=0,39 руб.*кол-во дет= руб. | F41: =0.39*D9 -> 3.51
A42: 2 работника (воспит, уборщ)*20 л/12 час/1000=0,003 куб.м.*34,5 руб.= руб. | F42: 0.1
A43: На мытье полов 75 л/1000=0,075 куб.м.*34,5руб.= руб. | F43: 2.59
A44: Водоотвед. 0,00625 куб.м.+0,003 куб.м.+0,075 куб.м.=0,08425 куб.м.*27,36 руб= руб. | F44: 2.31
A45: Отопление - | B45: =0.00266*D7/30/24*6809.35 -> 1.10 | C45: руб.
A46: 17,995 Гкал(по факту 2019 г)/8 мес(период отопления)= 2,249 Гкал в мес.
A47: 2,249 Гкал/847,2*12,9 кв.м=1,270Гкал/30 дн/24 ч*1 ч=0,0018 Гкал в час*1990 руб.= руб.
B49: 3. | C49: Материальные затраты - 2,3 руб.
A50: - Канцелярские товары (для ведения документации) – 1,3 руб. на одного ребенка
A51: Стоимость – 6144 руб.
A52: Срок полезного использования – 8 мес.
A53: Расходы в месяц – 768/8=96
A54: Затраты на одного ребенка за одно занятие – 96/4(часов в месяц)=24/10(кол-во детей)=1,2
A55: - Моющие средства для уборки помещения – 1,1 руб. на одного ребенка
A56: Стоимость – 5632
A57: Срок полезного использования – 8 мес.
A58: Расходы в месяц –704/8=88
A59: Затраты на одного ребенка за одно занятие – 88/4(часов в месяц)=22/10(кол-во детей)=1,1
C61: Расчет стоимости одного занятия на 1 человека:
C62: Расчет цены на оказание платной услуги
C64: Наименование статей затрат | D64: Сумма (руб.)
B65: 1 | C65: Затраты на оплату труда основного персонала | D65: =D12*D9 -> 326.85
B66: 2 | C66: Затраты материальных запасов | D66: =D20*D9 -> 130.31
B67: 3 | C67: Сумма начисленной амортизации оборудования, используемого при оказании платной услуги | D67: -
B68: 4 | C68: Накладные затраты, относимые на платную услугу | D68: =D25*D9 -> 138.20
B69: 5 | C69: Итого затрат | D69: =SUM(D65:D68) -> 595.37
B70: 6 | C70: Цена на 1 платную услугу | D70: =D69/D9 -> 66.15
B71: 7 | C71: Цена в месяц на 1 ребенка | D71: 264.60

Sheet 1
B3: д/с Шатлык
B5: Кружок "Знайка"
B6: Уламасова Ю.Л.
B7: S- кв.м. | D7: 43.7
B8: Кол-во занятий в нед. - 1(4) | D8: 4
B9: Кол-во детей - | D9: 9
B10: Ст-ть использ-го оборудования - руб. | D10: 43895
B12: 1. ОТ на 1 обучающего - руб.: | D12: =D13+D15 -> 28.60
B13: Окл.-14232 | D13: =14232/18/4/D9 -> 21.96
B15: Начисление на ОТ - | D15: =D13*30.2% -> 6.63
B18: 2. Затраты на мат.запасы на 1 реб. -руб.
B19: ст обор/36мес.=руб. | D19: =D10/36 -> 1219.31
B20: Затраты на 1 занятие- ст обор в мес/кол-во часов в мес/кол-во детей - руб. | D20: =D19/D8/D9 -> 33.87
B22: 3. Объем накладных затрат 1 ребенка - руб. | D22: =D30 -> 15.36
B23: Расчет накладных затрат
B24: 1 | C24: прогноз затрат на АУП | D24: -
B25: 2 | C25: Прогноз затрат общехозяйственного назнач. | D25: =D34+D35+2.3 -> 15.36
B26: 3 | C26: Прогноз суммы начисленной амортизации имущ-ва общехоз-го назнач. | D26: -
B27: 4 | C27: Прогноз ФОТ основного персонала | D27: =D12 -> 28.60
B28: 5 | C28: Коэффициент накладных затрат 5=(1+2+3)/4 | D28: =D25/D27 -> 0.54
B29: 6 | C29: Затраты на основн персонал, | D29: =D12 -> 28.60
B30: 7 | C30: Итого накладные затраты (в час на 1 реб) | D30: =D25 -> 15.36
B33: 1. | C33: ОТ уборщика: руб.
C34: 12130 руб./40 час/4 нед*1 час=75,82/кол-во дет, руб. | D34: =75.82*1.302/D9 -> 10.97
B35: 2. | C35: Затраты на ком. Услуги: коммун/кол-во дет, руб. | D35: =(B36+B40+B45)/D9 -> 2.09
A36: Э/Э - | B36: =0.03*D7*7 -> 9.18 | C36: руб.
A37: Годов. Потребл - 49190 квт/ч (факт 2019 г)
A38: 49190 квт/ч/244 раб.дн.в году=201,6 квт/ч в день/12 час.=16,8 квт/ч (затраты в час работы на все здание)
A39: 16,8 квт/ч /557,9 кв.м*12,9 кв.м.=1,56 квт/ч*5,69 руб.=
A40: Вода- | B40: =F41+F42+F43+F44 -> 8.51 | C40: руб.
A41: 1 реб*75 л(в день норма)/12 часов/1000=0,00625 куб.м*61,85 руб.=0,39 руб.*кол-во дет= руб. | F41: =0.39*D9 -> 3.51
A42: 2 работника (воспит, уборщ)*20 л/12 час/1000=0,003 куб.м.*34,5 руб.= руб. | F42: 0.1
A43: На мытье полов 75 л/1000=0,075 куб.м.*34,5руб.= руб. | F43: 2.59
A44: Водоотвед. 0,00625 куб.м.+0,003 куб.м.+0,075 куб.м.=0,08425 куб.м.*27,36 руб= руб. | F44: 2.31
A45: Отопление - | B45: =0.00266*D7/30/24*6809.35 -> 1.10 | C45: руб.
A46: 17,995 Гкал(по факту 2019 г)/8 мес(период отопления)= 2,249 Гкал в мес.
A47: 2,249 Гкал/847,2*12,9 кв.м=1,270Гкал/30 дн/24 ч*1 ч=0,0018 Гкал в час*1990 руб.= руб.
B49: 3. | C49: Материальные затраты - 2,3 руб.
A50: - Канцелярские товары (для ведения документации) – 1,3 руб. на одного ребенка
A51: Стоимость – 6144 руб.
A52: Срок полезного использования – 8 мес.
A53: Расходы в месяц – 768/8=96
A54: Затраты на одного ребенка за одно занятие – 96/4(часов в месяц)=24/10(кол-во детей)=1,2
A55: - Моющие средства для уборки помещения – 1,1 руб. на одного ребенка
A56: Стоимость – 5632
A57: Срок полезного использования – 8 мес.
A58: Расходы в месяц –704/8=88
A59: Затраты на одного ребенка за одно занятие – 88/4(часов в месяц)=22/10(кол-во детей)=1,1
C61: Расчет стоимости одного занятия на 1 человека:
C62: Расчет цены на оказание платной услуги
C64: Наименование статей затрат | D64: Сумма (руб.)
B65: 1 | C65: Затраты на оплату труда основного персонала | D65: =D12*D9 -> 257.36
B66: 2 | C66: Затраты материальных запасов | D66: =D20*D9 -> 304.83
B67: 3 | C67: Сумма начисленной амортизации оборудования, используемого при оказании платной услуги | D67: -
B68: 4 | C68: Накладные затраты, относимые на платную услугу | D68: =D25*D9 -> 138.20
B69: 5 | C69: Итого затрат | D69: =SUM(D65:D68) -> 700.39
B70: 6 | C70: Цена на 1 платную услугу | D70: =D69/D9 -> 77.82
B71: 7 | C71: Цена в месяц на 1 ребенка | D71: 311.28
